fUSD/lending_fUSD_20260525
["ID","MTS","AMOUNT","RATE_DAILY","PERIOD"]
[422941666,1779660633000,-500.0,0.00022913,2]
[422941670,1779660633000,-500.0,0.00022913,2]
[422941667,1779660633000,-500.0,0.00022913,2]
[422941659,1779660633000,-444.58667163,0.000229,2]
[422941671,1779660633000,-500.0,0.00022913,2]
[422941668,1779660633000,-335.02794156,0.00022913,2]
[422941664,1779660633000,-1418.57,0.00022912,2]
[422941663,1779660633000,-625.18,0.00022904,2]
[422941669,1779660633000,-500.0,0.00022913,2]
[422941662,1779660633000,-487.0,0.00022904,2]
[422941661,1779660633000,-487.0,0.00022904,2]
[422941665,1779660633000,-500.0,0.00022913,2]
[422941672,1779660633000,-48.19870272,0.00022913,2]
[422941676,1779660633000,-500.0,0.00022913,2]
[422941674,1779660633000,-500.0,0.00022913,2]
[422941675,1779660633000,-500.0,0.00022913,2]
[422941673,1779660633000,-451.80129728,0.00022913,2]
[422941678,1779660633000,-500.0,0.00022913,2]
[422941682,1779660633000,-500.0,0.00022913,2]
[422941681,1779660633000,-500.0,0.00022913,2]
[422941680,1779660633000,-500.0,0.00022913,2]
[422941679,1779660633000,-500.0,0.00022913,2]
[422941683,1779660633000,-331.29,0.00022913,2]
[422941684,1779660633000,-500.0,0.00022913,2]
[422941624,1779660633000,-13932.06,0.00022562,2]
[422941660,1779660633000,-280.93714837,0.00022904,2]
[422941657,1779660633000,-270.40297664,0.00022832,2]
[422941677,1779660633000,-500.0,0.00022913,2]
[422941648,1779660633000,-1224.0,0.00022603,2]
[422941632,1779660633000,-157.35207991,0.00022562,2]
[422941685,1779660633000,-500.0,0.00022913,2]
[422941633,1779660633000,-150.0,0.00022603,2]
[422941625,1779660633000,-67223.33,0.00022562,2]
[422941635,1779660633000,-170.0,0.00022603,2]
[422941637,1779660633000,-247.554,0.00022603,2]
[422941646,1779660633000,-519.0,0.00022603,2]
[422941636,1779660633000,-150.071,0.00022603,2]
[422941645,1779660633000,-927.0,0.00022603,2]
[422941638,1779660633000,-194.75,0.00022603,2]
[422941642,1779660633000,-151.0,0.00022603,2]
[422941639,1779660633000,-246.267,0.00022603,2]
[422941634,1779660633000,-150.372,0.00022603,2]
[422941640,1779660633000,-250.0,0.00022603,2]
[422941650,1779660633000,-3635.0,0.00022603,2]
[422941641,1779660633000,-245.377,0.00022603,2]
[422941651,1779660633000,-261.46,0.00022611,2]
[422941652,1779660633000,-2500.0,0.000227,2]
[422941658,1779660633000,-8477.03741878,0.00022832,2]
[422941649,1779660633000,-6060.0,0.00022603,2]
[422941655,1779660633000,-2395.29940745,0.00022813,2]
[422941653,1779660633000,-501.0,0.00022769,6]
[422941647,1779660633000,-1271.0,0.00022603,2]
[422941644,1779660633000,-625.0,0.00022603,2]
[422941643,1779660633000,-1355.0,0.00022603,2]
[422941654,1779660633000,-215.34753388,0.00022794,7]
[422941656,1779660633000,-5000.0,0.00022814,2]
[422941693,1779660634000,-500.0,0.00022913,2]
[422941686,1779660634000,-500.0,0.00022913,2]
[422941689,1779660634000,-134.9591993,0.00022913,2]
[422941687,1779660634000,-500.0,0.00022913,2]
[422941688,1779660634000,-365.0408007,0.00022913,2]
[422941691,1779660634000,-500.0,0.00022913,2]
[422941701,1779660634000,-500.0,0.00022913,2]
[422941702,1779660634000,-500.0,0.00022913,2]
[422941692,1779660634000,-500.0,0.00022913,2]
[422941690,1779660634000,-500.0,0.00022913,2]
[422941697,1779660634000,-500.0,0.00022913,2]
[422941700,1779660634000,-500.0,0.00022913,2]
[422941698,1779660634000,-500.0,0.00022913,2]
[422941696,1779660634000,-500.0,0.00022913,2]
[422941694,1779660634000,-500.0,0.00022913,2]
[422941699,1779660634000,-500.0,0.00022913,2]
[422941704,1779660634000,-367.81593456,0.00022913,2]
[422941703,1779660634000,-132.18406544,0.00022913,2]
[422941705,1779660634000,-39.61124148,0.00022913,2]
[422941695,1779660634000,-500.0,0.00022913,2]
[422941725,1779660638000,-527.2240957,0.00022913,2]
[422941728,1779660638000,-500.0,0.00022913,2]
[422941742,1779660638000,-513.50677347,0.00022913,2]
[422941733,1779660638000,-500.0,0.00022913,2]
[422941741,1779660638000,-500.0,0.00022913,2]
[422941732,1779660638000,-500.0,0.00022913,2]
[422941735,1779660638000,-500.0,0.00022913,2]
[422941744,1779660638000,-500.0,0.00022913,2]
[422941727,1779660638000,-500.0,0.00022913,2]
[422941734,1779660638000,-500.0,0.00022913,2]
[422941736,1779660638000,-500.0,0.00022913,2]
[422941743,1779660638000,-500.0,0.00022913,2]
[422941726,1779660638000,-542.23499676,0.00022913,2]
[422941731,1779660638000,-500.0,0.00022913,2]
[422941724,1779660638000,-500.0,0.00022913,2]
[422941723,1779660638000,-500.0,0.00022913,2]
[422941720,1779660638000,-500.0,0.00022913,2]
[422941718,1779660638000,-460.38875852,0.00022913,2]
[422941721,1779660638000,-500.0,0.00022913,2]
[422941730,1779660638000,-500.0,0.00022913,2]
[422941719,1779660638000,-500.0,0.00022913,2]
[422941729,1779660638000,-500.0,0.00022913,2]
[422941717,1779660638000,-2500.0,0.00022753,2]
[422941715,1779660638000,-500.0,0.00016126,2]
[422941716,1779660638000,-2500.0,0.00022462,2]
[422941737,1779660638000,-500.0,0.00022913,2]
[422941722,1779660638000,-500.0,0.00022913,2]
[422941738,1779660638000,-500.0,0.00022913,2]
[422941756,1779660638000,-599.6,0.00022913,2]
[422941739,1779660638000,-500.0,0.00022913,2]
[422941740,1779660638000,-500.0,0.00022913,2]
[422941771,1779660638000,-1099.0,0.00022913,5]
[422941766,1779660638000,-1418.57,0.00022913,2]
[422941765,1779660638000,-1418.57,0.00022913,2]
[422941770,1779660638000,-1418.57,0.00022913,2]
[422941761,1779660638000,-1418.57,0.00022913,2]
[422941768,1779660638000,-1418.57,0.00022913,2]
[422941764,1779660638000,-1418.57,0.00022913,2]
[422941767,1779660638000,-1418.57,0.00022913,2]
[422941763,1779660638000,-1418.57,0.00022913,2]
[422941769,1779660638000,-1418.57,0.00022913,2]
[422941760,1779660638000,-599.6,0.00022913,2]
[422941759,1779660638000,-599.6,0.00022913,2]
[422941762,1779660638000,-1418.57,0.00022913,2]
[422941772,1779660638000,-2109253.07875835,0.00022914,2]
[422941755,1779660638000,-599.6,0.00022913,2]
[422941758,1779660638000,-599.6,0.00022913,2]
[422941757,1779660638000,-599.6,0.00022913,2]
[422941754,1779660638000,-599.6,0.00022913,2]
[422941746,1779660638000,-500.0,0.00022913,2]
[422941750,1779660638000,-599.6,0.00022913,2]
[422941745,1779660638000,-500.0,0.00022913,2]
[422941751,1779660638000,-599.6,0.00022913,2]
[422941748,1779660638000,-500.0,0.00022913,2]
[422941749,1779660638000,-378.15,0.00022913,2]
[422941753,1779660638000,-599.6,0.00022913,2]
[422941752,1779660638000,-599.6,0.00022913,2]
[422941747,1779660638000,-500.0,0.00022913,2]
[422941781,1779660642000,-383.26915719,0.00022914,2]
[422941793,1779660643000,-1079.88131655,0.00022914,2]
[422941791,1779660643000,-794.60660635,0.00022914,2]
[422941790,1779660643000,-800.76947126,0.00022914,2]
[422941792,1779660643000,-4536.09496368,0.00022914,2]
[422941797,1779660646000,-1201.41969618,0.00022914,2]
[422941886,1779661832000,-2851.19,0.00012527,2]
[422941896,1779661832000,-157.94,0.00012661,2]
[422941892,1779661832000,-500.0,0.00012623,3]
[422941905,1779661832000,-150.0,0.00013488,2]
[422941884,1779661832000,-1200.0,0.00012462,2]
[422941891,1779661832000,-62478.92,0.00012623,2]
[422941883,1779661832000,-285.37,0.00012066,2]
[422941885,1779661832000,-181.61,0.00012519,2]
[422941894,1779661832000,-200.0,0.0001264,2]
[422941909,1779661832000,-150.0,0.00013488,2]
[422941900,1779661832000,-150.0,0.00013488,2]
[422941899,1779661832000,-285.37,0.00013071,2]
[422941901,1779661832000,-150.0,0.00013488,2]
[422941898,1779661832000,-229.72666954,0.00013,15]
[422941902,1779661832000,-150.0,0.00013488,2]
[422941903,1779661832000,-150.0,0.00013488,2]
[422941906,1779661832000,-150.0,0.00013488,2]
[422941890,1779661832000,-150.0,0.00012622,2]
[422941897,1779661832000,-587.0,0.00012864,2]
[422941889,1779661832000,-285.37,0.00012568,2]
[422941866,1779661832000,-285.37,9.552e-05,2]
[422941882,1779661832000,-15425.0,0.00011749,2]
[422941908,1779661832000,-150.0,0.00013488,2]
[422941865,1779661832000,-250.0,9.296e-05,2]
[422941867,1779661832000,-250.0,9.944e-05,2]
[422941864,1779661832000,-376.15449998,9.04e-05,2]
[422941868,1779661832000,-285.37,0.00010055,2]
[422941870,1779661832000,-6899.93548502,0.000103,2]
[422941869,1779661832000,-1200.0,0.00010299,2]
[422941881,1779661832000,-420.0,0.00011702,2]
[422941880,1779661832000,-295.0,0.00011702,2]
[422941873,1779661832000,-300.0,0.00010645,2]
[422941872,1779661832000,-300.0,0.00010645,2]
[422941871,1779661832000,-285.37,0.00010557,2]
[422941877,1779661832000,-285.37,0.0001106,2]
[422941878,1779661832000,-1680.0,0.00011329,2]
[422941875,1779661832000,-191.10191603,0.00010647,2]
[422941876,1779661832000,-21094.8820196,0.000107,2]
[422941879,1779661832000,-285.37,0.00011563,2]
[422941874,1779661832000,-843.0,0.00010646,2]
[422941887,1779661832000,-191.10191603,0.0001256,2]
[422941888,1779661832000,-893.24,0.00012568,2]
[422941904,1779661832000,-150.0,0.00013488,2]
[422941952,1779661832000,-150.0,0.00013787,2]
[422941910,1779661832000,-150.0,0.00013509,2]
[422941933,1779661832000,-175.38,0.00013699,2]
[422941936,1779661832000,-150.0,0.00013718,2]
[422941935,1779661832000,-150.0,0.00013702,2]
[422941939,1779661832000,-160.0,0.00013735,2]
[422941937,1779661832000,-150.0,0.0001372,2]
[422941938,1779661832000,-255.0,0.0001372,2]
[422941945,1779661832000,-150.0,0.00013752,2]
[422941946,1779661832000,-165.628146,0.00013754,2]
[422941932,1779661832000,-2500.0,0.00013699,2]
[422941944,1779661832000,-150.0,0.00013741,2]
[422941943,1779661832000,-150.0,0.00013737,2]
[422941941,1779661832000,-341.874043,0.00013735,2]
[422941942,1779661832000,-150.0,0.00013737,2]
[422941948,1779661832000,-321.603127,0.00013756,2]
[422941949,1779661832000,-150.0,0.00013762,2]
[422941950,1779661832000,-150.0,0.00013783,2]
[422941951,1779661832000,-150.0,0.00013787,2]
[422941907,1779661832000,-150.0,0.00013488,2]
[422941947,1779661832000,-249.486063,0.00013754,2]
[422941934,1779661832000,-150.0,0.00013699,2]
[422941940,1779661832000,-250.937021,0.00013735,2]
[422941931,1779661832000,-150.0,0.00013687,2]
[422941912,1779661832000,-150.0,0.00013538,2]
[422941914,1779661832000,-150.0,0.00013571,2]
[422941913,1779661832000,-150.0,0.00013551,2]
[422941920,1779661832000,-150.0,0.00013593,2]
[422941917,1779661832000,-150.0,0.00013576,2]
[422941918,1779661832000,-150.0,0.00013588,2]
[422941915,1779661832000,-150.0,0.00013572,2]
[422941930,1779661832000,-150.0,0.00013687,2]
[422941919,1779661832000,-150.0,0.00013588,2]
[422941916,1779661832000,-285.37,0.00013574,2]
[422941921,1779661832000,-150.0,0.00013603,2]
[422941927,1779661832000,-150.0,0.00013664,2]
[422941928,1779661832000,-150.0,0.00013678,2]
[422941929,1779661832000,-500.0,0.00013687,2]
[422941922,1779661832000,-150.0,0.00013614,2]
[422941923,1779661832000,-150.0,0.00013635,2]
[422941925,1779661832000,-150.0,0.00013654,2]
[422941924,1779661832000,-150.0,0.00013638,2]
[422941926,1779661832000,-150.0,0.00013657,2]
[422941911,1779661832000,-150.0,0.0001353,2]
[422941994,1779661833000,-285.37,0.00014077,2]
[422941996,1779661833000,-181.61,0.00014083,2]
[422941995,1779661833000,-150.0,0.00014079,2]
[422941990,1779661833000,-175.38,0.00014041,2]
[422941992,1779661833000,-150.0,0.00014064,2]
[422941979,1779661833000,-150.0,0.00013973,2]
[422941987,1779661833000,-1359.41,0.00014035,2]
[422941998,1779661833000,-150.0,0.00014087,2]
[422941988,1779661833000,-150.0,0.00014036,2]
[422941993,1779661833000,-150.0,0.0001407,2]
[422941977,1779661833000,-150.0,0.00013952,2]
[422941989,1779661833000,-150.0,0.00014037,2]
[422941991,1779661833000,-150.0,0.00014058,2]
[422942009,1779661833000,-150.0,0.00014179,2]
[422942000,1779661833000,-150.0,0.000141,2]
[422941999,1779661833000,-150.0,0.00014087,2]
[422942002,1779661833000,-150.0,0.00014121,2]
[422942001,1779661833000,-150.0,0.00014105,2]
[422942005,1779661833000,-403.0,0.00014141,2]
[422942003,1779661833000,-150.0,0.0001413,2]
[422942004,1779661833000,-150.0,0.00014137,2]
[422942007,1779661833000,-150.0,0.00014154,2]
[422942006,1779661833000,-150.0,0.00014142,2]
[422942008,1779661833000,-150.0,0.00014163,2]
[422942010,1779661833000,-150.0,0.00014184,2]
[422942012,1779661833000,-150.0,0.00014187,2]
[422941983,1779661833000,-150.0,0.00013994,2]
[422941997,1779661833000,-150.0,0.00014087,2]
[422941981,1779661833000,-150.0,0.00013987,2]
[422941962,1779661833000,-150.0,0.0001384,2]
[422941978,1779661833000,-500.0,0.00013961,2]
[422942022,1779661833000,-150.0,0.00014287,2]
[422941953,1779661833000,-150.0,0.00013787,2]
[422941954,1779661833000,-161.27105959,0.00013798,2]
[422941955,1779661833000,-150.0,0.00013804,2]
[422941957,1779661833000,-200.063765,0.00013823,2]
[422941958,1779661833000,-164.985036,0.00013825,2]
[422941956,1779661833000,-150.0,0.00013821,2]
[422941959,1779661833000,-150.0,0.00013825,2]
[422941960,1779661833000,-150.0,0.00013834,2]
[422941961,1779661833000,-150.0,0.00013837,2]
[422941963,1779661833000,-150.0,0.00013846,2]
[422941964,1779661833000,-200.0,0.00013859,2]
[422941967,1779661833000,-150.0,0.00013887,2]
[422941975,1779661833000,-150.0,0.00013937,2]
[422941965,1779661833000,-150.0,0.00013868,2]
[422941968,1779661833000,-150.0,0.00013889,2]
[422941970,1779661833000,-150.0,0.00013904,2]
[422941969,1779661833000,-170.410289,0.00013893,2]
[422941971,1779661833000,-150.0,0.0001391,2]
[422941972,1779661833000,-150.0,0.00013916,2]
[422941973,1779661833000,-150.0,0.00013928,2]
[422941974,1779661833000,-150.0,0.00013931,2]
[422941976,1779661833000,-150.0,0.00013949,2]
[422941985,1779661833000,-150.0,0.00014015,2]
[422941984,1779661833000,-250.0,0.00014,2]
[422941982,1779661833000,-150.0,0.00013987,2]
[422941980,1779661833000,-150.0,0.00013987,2]
[422941986,1779661833000,-150.0,0.00014017,2]
[422941966,1779661833000,-150.0,0.00013887,2]
[422942023,1779661833000,-150.0,0.00014287,2]
[422942060,1779661833000,-150.0,0.00014564,2]
[422942020,1779661833000,-150.0,0.00014269,2]
[422942046,1779661833000,-150.0,0.00014459,2]
[422942045,1779661833000,-150.0,0.00014457,2]
[422942050,1779661833000,-150.0,0.00014487,2]
[422942053,1779661833000,-500.0,0.00014509,2]
[422942052,1779661833000,-150.0,0.00014501,2]
[422942061,1779661833000,-89.79095756,0.0001457,2]
[422942051,1779661833000,-187.196705,0.00014496,2]
[422942057,1779661833000,-150.0,0.00014543,2]
[422942054,1779661833000,-150.0,0.00014522,2]
[422942059,1779661833000,-150.0,0.00014558,2]
[422942076,1779661833000,-150.0,0.00014687,2]
[422942056,1779661833000,-150.0,0.00014537,2]
[422942058,1779661833000,-150.0,0.00014546,2]
[422942047,1779661833000,-150.0,0.0001448,2]
[422942063,1779661833000,-285.37,0.00014579,2]
[422942069,1779661833000,-150.0,0.00014634,2]
[422942062,1779661833000,-60.20904244,0.0001457,2]
[422942064,1779661833000,-150.0,0.00014585,2]
[422942072,1779661833000,-150.0,0.00014649,2]
[422942066,1779661833000,-150.0,0.00014587,2]
[422942067,1779661833000,-150.0,0.00014606,2]
[422942070,1779661833000,-150.0,0.00014637,2]
[422942071,1779661833000,-150.0,0.0001464,2]
[422942068,1779661833000,-150.0,0.00014627,2]
[422942073,1779661833000,-150.0,0.00014653,2]
[422942074,1779661833000,-67.77417402,0.0001467,2]
[422942075,1779661833000,-82.22582598,0.0001467,2]
[422942015,1779661833000,-150.0,0.00014226,2]
[422942065,1779661833000,-150.0,0.00014587,2]
[422942048,1779661833000,-150.0,0.00014487,2]
[422942055,1779661833000,-150.0,0.00014525,2]
[422942044,1779661833000,-225.362883,0.00014444,2]
[422942011,1779661833000,-150.0,0.00014187,2]
[422942014,1779661833000,-150.0,0.00014205,2]
[422942021,1779661833000,-150.0,0.00014281,2]
[422942013,1779661833000,-150.0,0.00014193,2]
[422942016,1779661833000,-500.0,0.00014235,2]
[422942049,1779661833000,-150.0,0.00014487,2]
[422942018,1779661833000,-150.0,0.00014237,2]
[422942019,1779661833000,-150.0,0.00014248,2]
[422942024,1779661833000,-150.0,0.0001429,2]
[422942026,1779661833000,-150.0,0.00014311,2]
[422942027,1779661833000,-150.0,0.0001432,2]
[422942030,1779661833000,-150.0,0.00014344,2]
[422942028,1779661833000,-150.0,0.00014332,2]
[422942025,1779661833000,-150.0,0.00014295,2]
[422942017,1779661833000,-150.0,0.00014237,2]
[422942031,1779661833000,-150.0,0.00014353,2]
[422942043,1779661833000,-150.0,0.00014438,2]
[422942032,1779661833000,-150.0,0.00014369,2]
[422942039,1779661833000,-150.0,0.00014404,2]
[422942040,1779661833000,-150.0,0.0001441,2]
[422942041,1779661833000,-150.0,0.00014416,2]
[422942042,1779661833000,-150.0,0.00014437,2]
[422942038,1779661833000,-150.0,0.00014395,2]
[422942033,1779661833000,-150.0,0.00014374,2]
[422942036,1779661833000,-150.0,0.00014387,2]
[422942034,1779661833000,-175.38,0.00014384,2]
[422942029,1779661833000,-150.0,0.00014337,2]
[422942035,1779661833000,-150.0,0.00014387,2]
[422942037,1779661833000,-150.0,0.00014387,2]
[422942097,1779661834000,-150.0,0.00014796,2]
[422942088,1779661834000,-150.0,0.00014772,2]
[422942093,1779661834000,-94.29758439,0.00014786,2]
[422942092,1779661834000,-500.0,0.00014783,2]
[422942087,1779661834000,-3105.51922733,0.0001476,2]
[422942098,1779661834000,-26008.77363117,0.000148,2]
[422942091,1779661834000,-11387.62175999,0.00014781,2]
[422942089,1779661834000,-150.0,0.00014775,2]
[422942090,1779661834000,-3105.51922732,0.0001478,2]
[422942079,1779661834000,-150.0,0.00014691,2]
[422942085,1779661834000,-150.0,0.00014754,2]
[422942083,1779661834000,-150.0,0.00014737,2]
[422942084,1779661834000,-150.0,0.00014737,2]
[422942082,1779661834000,-150.0,0.00014733,2]
[422942080,1779661834000,-150.0,0.00014712,2]
[422942078,1779661834000,-150.0,0.00014687,2]
[422942077,1779661834000,-150.0,0.00014687,2]
[422942094,1779661834000,-55.70241561,0.00014786,2]
[422942086,1779661834000,-150.0,0.00014756,2]
[422942095,1779661834000,-150.0,0.00014786,2]
[422942081,1779661834000,-150.0,0.00014722,2]
[422942100,1779661834000,-11387.62175994,0.00014807,2]
[422942096,1779661834000,-11387.62175994,0.00014794,2]
[422942119,1779661834000,-265.84703492,0.00014844,2]
[422942118,1779661834000,-3616.78663475,0.00014844,2]
[422942115,1779661834000,-150.0,0.00014836,2]
[422942116,1779661834000,-150.0,0.00014839,2]
[422942114,1779661834000,-4728.36223823,0.00014834,2]
[422942113,1779661834000,-753.07092822,0.00014834,2]
[422942107,1779661834000,-26008.77363113,0.00014822,2]
[422942104,1779661834000,-150.0,0.0001482,2]
[422942109,1779661834000,-1359.47,0.00014833,2]
[422942117,1779661834000,-3105.51922732,0.0001484,2]
[422942106,1779661834000,-11387.62175994,0.00014821,2]
[422942108,1779661834000,-500.0,0.00014833,2]
[422942103,1779661834000,-150.0,0.00014817,2]
[422942101,1779661834000,-150.0,0.0001481,2]
[422942102,1779661834000,-26008.77363113,0.00014811,2]
[422942112,1779661834000,-1254.41808677,0.00014834,2]
[422942099,1779661834000,-3105.51922732,0.000148,2]
[422942110,1779661834000,-26008.77363113,0.00014833,2]
[422942111,1779661834000,-4651.77050672,0.00014834,2]
[422942105,1779661834000,-3105.51922732,0.0001482,2]
[422942152,1779661838000,-150.0,0.00014881,2]
[422942144,1779661838000,-3105.51922732,0.0001486,2]
[422942148,1779661838000,-11387.62175994,0.00014874,2]
[422942146,1779661838000,-26008.77363113,0.00014867,2]
[422942151,1779661838000,-3105.51922732,0.0001488,2]
[422942142,1779661838000,-26008.77363113,0.00014856,2]
[422942150,1779661838000,-26008.77363113,0.00014878,2]
[422942143,1779661838000,-150.0,0.0001486,2]
[422942139,1779661838000,-342.186847,0.00014422,2]
[422942141,1779661838000,-11387.62175994,0.00014847,2]
[422942149,1779661838000,-25000.0,0.00014874,3]
[422942140,1779661838000,-22126.13996146,0.00014844,2]
[422942153,1779661838000,-25000.0,0.00014882,3]
[422942145,1779661838000,-11387.62175994,0.0001486,2]
[422942154,1779661838000,-150.0,0.00014886,2]
[422942147,1779661838000,-150.0,0.00014871,2]
[422942163,1779661838000,-572.42807368,0.000149,2]
[422942161,1779661838000,-1359.47,0.00014899,2]
[422942170,1779661838000,-4201.05882369,0.000149,2]
[422942167,1779661838000,-3105.51922732,0.000149,2]
[422942168,1779661838000,-11387.62175994,0.000149,2]
[422942164,1779661838000,-540.80595328,0.000149,2]
[422942173,1779661838000,-3251.72382877,0.000149,2]
[422942172,1779661838000,-2571.01364118,0.000149,2]
[422942165,1779661838000,-26008.77363113,0.000149,2]
[422942166,1779661838000,-25000.0,0.000149,3]
[422942157,1779661838000,-26008.77363113,0.00014889,2]
[422942155,1779661838000,-150.0,0.00014886,2]
[422942160,1779661838000,-500.0,0.00014899,2]
[422942162,1779661838000,-10000.0,0.000149,2]
[422942158,1779661838000,-25000.0,0.00014891,3]
[422942156,1779661838000,-11387.62175994,0.00014887,2]
[422942159,1779661838000,-150.0,0.00014898,2]
[422942223,1779661839000,-500.0,0.00014999,2]
[422942210,1779661839000,-500.0,0.00014999,2]
[422942204,1779661839000,-836.64045231,0.0001499,2]
[422942213,1779661839000,-500.0,0.00014999,2]
[422942211,1779661839000,-500.0,0.00014999,2]
[422942206,1779661839000,-500.0,0.00014999,2]
[422942205,1779661839000,-500.0,0.00014999,2]
[422942212,1779661839000,-500.0,0.00014999,2]
[422942224,1779661839000,-500.0,0.00014999,2]
[422942215,1779661839000,-500.0,0.00014999,2]
[422942225,1779661839000,-500.0,0.00014999,2]
[422942214,1779661839000,-500.0,0.00014999,2]
[422942216,1779661839000,-500.0,0.00014999,2]
[422942230,1779661839000,-500.0,0.00014999,2]
[422942221,1779661839000,-500.0,0.00014999,2]
[422942218,1779661839000,-500.0,0.00014999,2]
[422942219,1779661839000,-500.0,0.00014999,2]
[422942217,1779661839000,-500.0,0.00014999,2]
[422942222,1779661839000,-500.0,0.00014999,2]
[422942226,1779661839000,-500.0,0.00014999,2]
[422942227,1779661839000,-500.0,0.00014999,2]
[422942228,1779661839000,-500.0,0.00014999,2]
[422942232,1779661839000,-500.0,0.00014999,2]
[422942229,1779661839000,-500.0,0.00014999,2]
[422942231,1779661839000,-500.0,0.00014999,2]
[422942233,1779661839000,-500.0,0.00014999,2]
[422942207,1779661839000,-500.0,0.00014999,2]
[422942220,1779661839000,-500.0,0.00014999,2]
[422942209,1779661839000,-500.0,0.00014999,2]
[422942176,1779661839000,-572.42807362,0.00014914,2]
[422942208,1779661839000,-500.0,0.00014999,2]
[422942177,1779661839000,-433.0,0.00014919,2]
[422942175,1779661839000,-150.0,0.00014903,2]
[422942174,1779661839000,-150.0,0.00014902,2]
[422942178,1779661839000,-150.0,0.00014923,2]
[422942180,1779661839000,-150.0,0.00014936,2]
[422942179,1779661839000,-572.42807362,0.00014927,2]
[422942181,1779661839000,-572.42807362,0.00014941,2]
[422942182,1779661839000,-4201.05882368,0.00014941,2]
[422942187,1779661839000,-150.0,0.00014965,2]
[422942186,1779661839000,-572.42807362,0.00014955,2]
[422942184,1779661839000,-3251.72382875,0.00014941,2]
[422942183,1779661839000,-2571.01364116,0.00014941,2]
[422942185,1779661839000,-150.0,0.00014944,2]
[422942201,1779661839000,-259.23187953,0.00014986,2]
[422942188,1779661839000,-572.42807362,0.00014968,2]
[422942197,1779661839000,-271.9605929,0.00014986,2]
[422942199,1779661839000,-268.6510704,0.00014986,2]
[422942196,1779661839000,-154.71485258,0.00014986,2]
[422942189,1779661839000,-572.42807362,0.00014982,2]
[422942200,1779661839000,-296.0324461,0.00014986,2]
[422942198,1779661839000,-262.76864098,0.00014986,2]
[422942190,1779661839000,-4201.05882368,0.00014982,2]
[422942191,1779661839000,-2571.01364116,0.00014982,2]
[422942193,1779661839000,-187.71765814,0.00014986,2]
[422942192,1779661839000,-170.45505721,0.00014986,2]
[422942194,1779661839000,-271.88901507,0.00014986,2]
[422942202,1779661839000,-836.64045231,0.0001499,2]
[422942203,1779661839000,-836.64045231,0.0001499,2]
[422942195,1779661839000,-155.40371802,0.00014986,2]
[422942234,1779661839000,-500.0,0.00014999,2]
[422942240,1779661839000,-500.0,0.00014999,2]
[422942238,1779661839000,-500.0,0.00014999,2]
[422942274,1779661839000,-300.0,0.00014999,2]
[422942275,1779661839000,-300.0,0.00014999,2]
[422942265,1779661839000,-1359.47,0.00014999,2]
[422942266,1779661839000,-1359.47,0.00014999,2]
[422942267,1779661839000,-1359.47,0.00014999,2]
[422942268,1779661839000,-1359.47,0.00014999,2]
[422942269,1779661839000,-1359.5,0.00014999,2]
[422942270,1779661839000,-300.0,0.00014999,2]
[422942278,1779661839000,-1808.80400951,0.00015,14]
[422942280,1779661839000,-9904878.05627086,0.00015,2]